bitfinex/quotes_SOLUSD_20240825
["timestamp","ask_amount","ask_price","bid_price","bid_amount"]
[1724623701795,6.1688,161.54,161.45,29.53611282]
[1724623702167,6.1688,161.54,161.48,29.53611282]
[1724623703179,6.1688,161.54,161.46,65.0]
[1724623704095,6.1688,161.54,161.46,20.0]
[1724623704293,6.58383869,161.54,161.46,20.0]
[1724623704501,6.1688,161.54,161.46,20.0]
[1724623704666,6.1688,161.54,161.42,29.53611282]
[1724623706288,6.1688,161.54,161.43,20.92674083]
[1724623706603,6.1688,161.54,161.43,20.0]
[1724623706986,6.1688,161.54,161.45,29.53611282]
[1724623709315,6.1688,161.54,161.48,29.53611282]
[1724623709489,75.92491282,161.68,161.51,29.53611282]
[1724623709490,6.627,161.58,161.51,29.53611282]
[1724623711905,6.627,161.58,161.48,29.53611282]
[1724623712119,6.627,161.58,161.49,65.0]
[1724623713105,6.627,161.58,161.45,37.76963239]
[1724623714133,6.627,161.58,161.45,29.53611282]
[1724623714628,6.627,161.58,161.46,45.0]
[1724623714934,6.627,161.58,161.46,65.0]
[1724623722714,6.627,161.58,161.5,29.53611282]
[1724623722920,6.627,161.58,161.51,65.0]
[1724623726429,6.627,161.58,161.51,20.0]
[1724623726629,6.627,161.58,161.46,20.0]
[1724623727349,23.1524,161.63,161.51,29.53611282]
[1724623727831,23.1524,161.63,161.52,65.0]
[1724623728249,23.1524,161.63,161.52,20.0]
[1724623728451,16.1165,161.62,161.49,20.0]
[1724623728750,16.1165,161.62,161.49,65.0]
[1724623732327,16.1165,161.62,161.5,1.54949272]
[1724623733053,16.1165,161.62,161.49,65.0]
[1724623733258,16.1165,161.62,161.5,1.54942881]
[1724623733428,16.1165,161.62,161.51,29.53611282]
[1724623735131,16.1165,161.62,161.52,1.54942346]
[1724623735959,16.1165,161.62,161.51,29.53611282]
[1724623736158,16.1165,161.62,161.52,1.54943456]
[1724623736356,16.1165,161.62,161.53,1.54943456]
[1724623736956,16.1165,161.62,161.51,29.53611282]
[1724623737152,16.1165,161.62,161.52,2.97267556]
[1724623737355,16.1165,161.62,161.54,1.5494171]
[1724623737534,16.1165,161.62,161.55,1.54942338]
[1724623737736,16.1165,161.62,161.56,1.54942338]
[1724623737947,16.1165,161.62,161.54,1.5494171]
[1724623738137,16.1165,161.62,161.55,4.52295035]
[1724623738335,16.1165,161.62,161.56,1.54942276]
[1724623738561,16.1165,161.62,161.57,1.54942276]
[1724623738752,16.1165,161.62,161.54,2.97331902]
[1724623739061,16.1165,161.62,161.55,1.54942214]
[1724623739256,16.1165,161.62,161.56,1.54942214]
[1724623739433,16.1165,161.62,161.57,1.54942214]
[1724623739763,16.1165,161.62,161.51,29.53611282]
[1724623739946,16.1165,161.62,161.54,2.97376763]
[1724623740257,16.1165,161.62,161.52,3.84534381]
[1724623740456,16.1165,161.62,161.53,2.97368918]
[1724623740644,16.1165,161.62,161.54,2.97368918]
[1724623740851,16.1165,161.62,161.52,3.84534381]
[1724623741053,16.1165,161.62,161.53,2.9737388]
[1724623741247,16.1165,161.62,161.54,2.9737388]
[1724623741459,16.1165,161.62,161.52,3.84534381]
[1724623741758,16.1165,161.62,161.53,2.97378371]
[1724623742056,16.1165,161.62,161.54,2.97378371]
[1724623742253,16.1165,161.62,161.5,23.56413675]
[1724623742460,16.1165,161.62,161.51,26.81835745]
[1724623742660,22.71893869,161.62,161.52,6.81835745]
[1724623742832,22.71893869,161.62,161.53,2.97345172]
[1724623743152,22.71893869,161.62,161.51,20.0]
[1724623743456,6.528,161.61,161.52,2.97439573]
[1724623743643,6.528,161.61,161.5,20.0]
[1724623743957,15.4985,161.59,161.51,2.97451235]
[1724623744158,15.4985,161.59,161.45,7.69365419]
[1724623744159,6.1955,161.57,161.37,20.0]
[1724623744456,16.3449,161.55,161.44,33.00430963]
[1724623744646,16.3449,161.55,161.45,9.44017288]
[1724623744857,16.3449,161.55,161.46,2.97581739]
[1724623745030,16.3449,161.55,161.47,2.97581739]
[1724623745234,16.3449,161.55,161.48,2.97581739]
[1724623745434,16.3449,161.55,161.49,2.97581739]
[1724623745655,16.3449,161.55,161.46,2.97581739]
[1724623745862,23.97917544,161.54,161.47,2.97581739]
[1724623746063,23.56413675,161.54,161.46,2.97581739]
[1724623746354,23.56413675,161.54,161.42,23.56413675]
[1724623746355,6.3233,161.53,161.43,9.44632219]
[1724623746561,16.6299,161.51,161.43,9.44632219]
[1724623746736,16.6299,161.51,161.41,6.46812978]
[1724623746938,16.6299,161.51,161.42,23.56413675]
[1724623747145,16.6299,161.51,161.43,26.46812978]
[1724623747358,16.6299,161.51,161.44,23.56413675]
[1724623748354,16.6299,161.51,161.46,23.56413675]
[1724623748670,16.6299,161.51,161.48,23.56413675]
[1724623748967,16.4902,161.55,161.5,23.56413675]
[1724623749136,16.4902,161.55,161.47,45.0]
[1724623749137,16.4902,161.55,161.52,23.56413675]
[1724623750066,6.5758,161.57,161.54,23.56413675]
[1724623750372,18.07343978,161.71,161.47,45.0]
[1724623750373,6.5758,161.61,161.56,23.56413675]
[1724623750544,6.5758,161.61,161.52,23.56413675]
[1724623750545,6.5758,161.61,161.58,23.56413675]
[1724623750956,6.5758,161.61,161.56,23.56413675]
[1724623752672,15.8428,161.63,161.58,23.56413675]
[1724623752862,15.8428,161.63,161.56,23.56413675]
[1724623753961,15.8428,161.63,161.55,29.43853516]
[1724623754167,15.8428,161.63,161.56,65.0]
[1724623754867,15.8428,161.63,161.56,20.0]
[1724623755558,15.8428,161.63,161.55,29.43853516]
[1724623755760,15.8428,161.63,161.52,29.43853516]
[1724623755953,15.8428,161.63,161.53,65.0]
[1724623758865,15.8428,161.63,161.54,1.24347325]
[1724623759071,15.8428,161.63,161.53,65.0]
[1724623759400,15.8428,161.63,161.54,29.43853516]
[1724623760971,15.8428,161.63,161.56,29.43853516]
[1724623761283,15.8428,161.63,161.58,29.43853516]
[1724623762157,15.8428,161.63,161.56,29.43853516]
[1724623762484,15.8428,161.63,161.57,20.0]
[1724623762686,15.8428,161.63,161.54,29.43853516]
[1724623762859,15.8428,161.63,161.55,20.0]
[1724623763569,15.8428,161.63,161.53,20.0]
[1724623765888,6.5213,161.62,161.5,29.43853516]
[1724623766372,6.5213,161.62,161.51,45.0]
[1724623767187,0.41503869,161.61,161.52,20.0]
[1724623767888,6.5213,161.62,161.52,20.0]
[1724623775184,0.41503869,161.61,161.52,20.0]
[1724623775379,16.63353869,161.6,161.49,23.56623548]
[1724623775609,16.63353869,161.6,161.5,20.0]
[1724623775610,6.4473,161.59,161.5,20.0]
[1724623775798,6.4473,161.59,161.48,20.0]
[1724623776391,0.41503869,161.58,161.48,20.0]
[1724623776717,0.41503869,161.58,161.49,45.0]
[1724623776912,0.41503869,161.58,161.5,20.0]
[1724623778293,0.41503869,161.58,161.48,20.0]
[1724623778500,30.01353548,161.59,161.48,20.0]
[1724623778501,36.20203548,161.59,161.48,20.0]
[1724623778808,30.01353548,161.59,161.48,20.0]
[1724623783727,6.4473,161.59,161.49,68.56623548]
[1724623783900,6.4473,161.59,161.5,20.0]
[1724623784103,6.4473,161.59,161.52,23.56623548]
[1724623784812,6.4473,161.59,161.54,23.56623548]
[1724623785124,6.44607601,161.75,161.5,20.0]
[1724623785125,21.4456,161.65,161.58,23.56623548]
[1724623785333,21.4456,161.65,161.62,23.56623548]
[1724623785502,21.4456,161.69,161.64,23.56623548]
[1724623785709,0.8235312,161.72,161.68,23.56623548]
[1724623785909,0.8235312,161.72,161.7,23.56623548]
[1724623786213,0.8235312,161.72,161.71,45.0]
[1724623786734,0.8235312,161.72,161.65,20.0]
[1724623787026,0.8235312,161.72,161.58,26.5785]
[1724623787027,0.8235312,161.72,161.67,23.56623548]
[1724623787238,0.8235312,161.72,161.68,65.0]
[1724623787417,0.8235312,161.72,161.68,20.0]
[1724623787811,0.8235312,161.72,161.66,20.0]
[1724623788011,0.8235312,161.72,161.62,29.41290707]
[1724623788206,0.8235312,161.72,161.63,65.0]
[1724623790616,6.6351,161.71,161.63,20.0]
[1724623792634,6.6351,161.71,161.6,20.0]
[1724623792826,15.0568,161.7,161.61,45.0]
[1724623793006,15.0568,161.7,161.62,20.0]
[1724623793836,15.0568,161.7,161.62,49.41290707]
[1724623798121,15.0568,161.7,161.63,45.0]
[1724623798724,15.0568,161.7,161.64,20.0]
[1724623798923,6.6351,161.71,161.65,45.0]
[1724623799123,0.8235312,161.72,161.66,20.0]
[1724623799328,0.8235312,161.72,161.67,46.23499957]
[1724623799507,0.8235312,161.72,161.68,1.23607837]
[1724623799708,0.8235312,161.72,161.68,21.23607837]
[1724623799926,0.8235312,161.72,161.68,49.41290707]
[1724623800115,0.8235312,161.72,161.69,45.0]
[1724623800415,0.8235312,161.72,161.7,21.2364403]
[1724623800613,0.8235312,161.72,161.71,45.0]
[1724623800826,0.8235312,161.72,161.71,65.0]
[1724623807629,15.4576,161.86,161.71,73.23351957]
[1724623807840,15.4576,161.86,161.77,29.41290707]
[1724623808040,15.4576,161.86,161.78,20.0]
[1724623808217,15.4576,161.86,161.79,46.23499843]
[1724623808422,15.4576,161.86,161.8,50.64782917]
[1724623809226,15.4576,161.86,161.8,21.2349221]
[1724623809628,15.4576,161.86,161.79,45.0]
[1724623809846,15.4576,161.86,161.74,51.33890707]
[1724623810138,15.4576,161.86,161.75,65.0]
[1724623812521,15.4576,161.86,161.77,29.41290707]
[1724623812735,6.4466,161.87,161.8,29.41290707]
[1724623813042,6.4466,161.87,161.81,65.0]
[1724623816459,6.4466,161.87,161.81,20.0]
[1724623816635,6.4466,161.87,161.78,20.0]
[1724623816839,6.4466,161.87,161.79,45.0]
[1724623817040,6.4466,161.87,161.8,20.0]
[1724623819980,22.7816,161.97,161.83,22.5542]
[1724623820136,22.7816,161.97,161.87,23.46693447]
[1724623820337,22.7816,161.97,161.87,68.46693447]
[1724623820564,22.7816,162.03,161.92,23.46693447]
[1724623820733,22.7816,162.03,161.93,20.0]
[1724623821266,22.7816,162.03,161.94,68.46693447]
[1724623821434,22.7816,162.03,161.96,23.46693447]
[1724623822065,22.7816,162.03,161.94,74.29568583]
[1724623822374,22.7816,162.03,161.95,20.0]
[1724623822865,22.7816,162.03,161.92,20.0]
[1724623823055,23.19663869,162.03,161.93,45.0]
[1724623823240,52.49232452,162.03,161.88,29.29568583]
[1724623823568,6.1725,162.01,161.89,45.0]
[1724623823863,6.1732,161.99,161.84,29.29568583]
[1724623824047,0.41503869,161.98,161.84,29.29568583]
[1724623824248,6.58883869,161.98,161.84,29.29568583]
[1724623824460,29.29568583,162.0,161.84,29.29568583]
[1724623824461,29.71072452,162.0,161.84,29.29568583]
[1724623824644,6.467,161.97,161.84,29.29568583]
[1724623825763,6.467,162.02,161.9,29.29568583]
[1724623825970,6.467,162.02,161.91,65.0]
[1724623827567,6.467,162.02,161.91,20.0]
[1724623827568,6.1728,162.0,161.91,20.0]
[1724623827868,35.88352452,162.0,161.87,29.29568583]
[1724623828062,35.88352452,162.0,161.88,45.0]
[1724623828245,35.88352452,162.0,161.87,29.29568583]
[1724623828879,6.1732,161.99,161.87,29.29568583]
[1724623829044,35.88462452,161.98,161.84,29.29568583]
[1724623829250,35.46958583,161.98,161.84,29.29568583]
[1724623829457,6.1045,161.97,161.84,29.29568583]
[1724623829672,16.3159,161.95,161.84,29.29568583]
[1724623829969,45.61158583,161.95,161.81,29.29568583]
[1724623830794,16.3159,161.95,161.82,7.77628069]
[1724623831205,16.3159,161.95,161.84,29.29568583]
[1724623831495,16.3159,161.95,161.87,29.29568583]
[1724623831675,6.1045,161.97,161.9,29.29568583]
[1724623832003,6.1045,161.97,161.91,65.0]
[1724623834794,6.1045,161.97,161.91,20.0]
[1724623835767,6.1045,161.97,161.91,20.3243948]
[1724623836375,15.6654,161.99,161.91,20.0]
[1724623836575,15.6654,161.99,161.93,29.29568583]
[1724623836801,15.6654,161.99,161.94,0.32411438]
[1724623837367,15.6654,161.99,161.93,29.29568583]
[1724623837979,6.0122,162.01,161.94,45.3241542]
[1724623838180,6.0122,162.01,161.95,20.0]
[1724623838377,6.0122,162.01,161.96,0.32411417]
[1724623838580,6.0122,162.01,161.96,29.6198]
[1724623838801,15.4995,162.03,161.96,29.6198]
[1724623839110,15.4995,162.03,161.95,20.0]
[1724623839313,15.4995,162.03,161.96,45.32397407]
[1724623839801,0.8235312,162.04,161.97,49.29568583]
[1724623840012,0.8235312,162.04,161.98,45.32393406]
[1724623840305,0.8235312,162.04,161.99,20.32391406]
[1724623840602,0.8235312,162.04,161.99,20.0]
[1724623840800,0.8235312,162.04,161.99,20.32391405]
[1724623840982,0.8235312,162.04,161.99,20.0]
[1724623841597,0.8235312,162.04,161.99,20.33372513]
[1724623841914,0.8235312,162.04,162.0,45.0]
[1724623843288,0.8235312,162.04,161.99,20.0]
[1724623843477,0.8235312,162.04,161.98,20.0]
[1724623843672,0.8235312,162.04,161.99,45.0]
[1724623844676,0.8235312,162.04,162.0,20.0]
[1724623844873,0.8235312,162.04,162.01,45.0]
[1724623845077,0.8235312,162.04,162.02,20.0]
[1724623845277,0.8235312,162.04,162.03,45.0]
[1724623845490,0.8235312,162.04,162.03,65.0]
[1724623846381,0.8235312,162.04,162.03,94.29568583]
[1724623848803,0.8235312,162.04,162.03,65.0]
[1724623849782,0.8235312,162.04,161.97,29.29568583]
[1724623850088,0.8235312,162.04,161.93,29.29568583]
[1724623850391,0.8235312,162.04,161.95,29.29568583]
[1724623850592,0.8235312,162.04,161.97,29.29568583]
[1724623850985,0.8235312,162.04,161.99,29.29568583]
[1724623851182,0.8235312,162.04,162.0,65.0]
[1724623851783,0.8235312,162.04,162.0,20.0]
[1724623851989,0.8235312,162.04,161.99,29.29568583]
[1724623852309,0.8235312,162.04,162.0,65.0]
[1724623855216,0.8235312,162.04,162.0,20.0]
[1724623855514,0.8235312,162.04,161.97,20.0]
[1724623855899,16.3807312,162.04,161.95,20.0]
[1724623856095,16.3807312,162.04,161.92,51.82838583]
[1724623856096,16.3807312,162.04,161.92,45.70108583]
[1724623856301,16.3807312,162.04,161.94,29.29568583]
[1724623856515,16.3807312,162.04,161.96,29.29568583]
[1724623856703,16.3807312,162.04,161.92,53.47736652]
[1724623856913,16.3807312,162.04,161.93,1.23603509]
[1724623857212,16.3807312,162.04,161.92,53.47736652]
[1724623857592,6.2315,162.03,161.93,20.0]
[1724623857795,6.2315,162.03,161.9,29.29568583]
[1724623859729,6.2315,162.03,161.95,45.0]
[1724623859903,6.2315,162.03,161.96,20.0]
[1724623861126,6.2315,162.03,161.97,45.0]
[1724623861805,6.2315,162.03,161.98,20.0]
[1724623863835,6.2315,162.03,161.9,29.29568583]
[1724623864128,6.2315,162.03,161.91,4.16819119]
[1724623864552,29.29568583,162.02,161.91,4.16819119]
[1724623864741,29.29568583,162.0,161.88,4.16886798]
[1724623865724,15.9718,161.99,161.88,4.16886798]
[1724623865934,6.1767,161.98,161.88,4.16886798]
[1724623866299,6.1767,161.98,161.88,24.16886798]
[1724623866503,6.1767,161.98,161.89,46.23623536]
[1724623866722,6.1767,161.98,161.9,21.23623536]
[1724623866932,6.1767,161.98,161.91,1.23623536]
[1724623868420,6.1767,161.98,161.91,30.53205618]
[1724623868637,6.1767,161.98,161.92,65.0]
[1724623870855,6.1767,161.98,161.92,20.0]
[1724623871151,0.91503869,161.97,161.9,20.0]
[1724623871351,0.91503869,161.97,161.87,2.93206715]
[1724623871535,6.1767,161.98,161.87,29.29568583]
[1724623871856,6.1767,161.98,161.88,2.93206715]
[1724623872052,6.1767,161.98,161.89,29.29568583]
[1724623872240,7.09173869,161.98,161.87,29.29568583]
[1724623872437,6.1767,161.98,161.88,2.93306602]
[1724623872632,6.1767,161.98,161.86,26.73431519]
[1724623872834,6.1767,161.98,161.87,32.22875185]
[1724623873054,6.1767,161.98,161.88,20.0]
[1724623873952,36.38742452,161.98,161.84,29.29568583]
[1724623874255,29.29568583,161.96,161.85,2.93341114]
[1724623874444,29.29568583,161.96,161.83,13.12515893]
[1724623874637,6.1767,161.98,161.84,29.29568583]
[1724623874840,6.1767,161.98,161.86,29.29568583]
[1724623875030,6.1767,161.98,161.87,2.93416292]
[1724623875352,6.1767,161.98,161.87,65.0]
[1724623875734,6.1767,161.98,161.88,29.29568583]
[1724623875935,6.1767,161.98,161.9,29.29568583]
[1724623876161,6.1767,161.98,161.91,20.0]
[1724623876529,6.1767,161.98,161.92,29.29568583]
[1724623877031,15.9718,161.99,161.92,29.29568583]
[1724623877852,15.9718,161.99,161.93,2.93045652]
[1724623878149,15.9718,161.99,161.95,29.29568583]
[1724623878357,15.9718,161.99,161.96,2.92835597]
[1724623878557,6.3811,162.02,161.96,67.92843525]
[1724623878731,6.3811,162.02,161.96,20.0]
[1724623878931,6.3811,162.02,161.96,22.92850718]
[1724623879128,6.3811,162.02,161.96,20.0]
[1724623879331,6.3811,162.02,161.93,22.92933627]
[1724623879632,7.29613869,162.02,161.93,22.92933627]
[1724623879838,0.91503869,162.01,161.93,2.92933627]
[1724623880031,0.91503869,162.0,161.9,9.31462184]
[1724623880231,6.3811,162.02,161.9,13.11413811]
[1724623880969,6.3811,162.02,161.9,6.72993084]
[1724623881279,6.3811,162.02,161.9,2.93041457]
[1724623881280,16.4541,162.0,161.9,2.93041457]
[1724623881432,0.91503869,161.99,161.87,13.11832908]
[1724623881636,0.91503869,161.98,161.87,13.11832908]
[1724623881833,45.74978583,162.0,161.87,13.11832908]
[1724623882739,45.74978583,162.0,161.86,29.29568583]
[1724623882955,45.74978583,162.0,161.87,13.12087037]
[1724623883167,45.74978583,162.0,161.88,65.0]
[1724623883457,45.74978583,162.0,161.89,6.73380767]
[1724623883636,45.74978583,162.0,161.9,20.0]
[1724623883960,45.74978583,162.0,161.9,22.93279101]
[1724623884131,45.74978583,162.0,161.9,20.0]
[1724623884332,45.74978583,162.0,161.89,22.93233088]
[1724623884863,16.4541,162.0,161.89,22.93233088]
[1724623885551,52.25733869,161.99,161.89,2.93233088]
[1724623885865,6.3423,161.95,161.85,13.12013903]
[1724623886029,7.25733869,161.95,161.86,3.80092352]
[1724623886232,7.25733869,161.95,161.82,13.12013903]
[1724623886463,7.25733869,161.95,161.81,29.29568583]
[1724623886661,7.25733869,161.95,161.83,3.80315548]
[1724623886833,7.25733869,161.95,161.82,9.32578246]
[1724623886834,7.25733869,161.95,161.82,13.12893794]
[1724623887461,7.25733869,161.95,161.83,45.0]
[1724623887772,6.3423,161.95,161.84,36.03401487]
[1724623887957,6.3423,161.95,161.87,29.29568583]
[1724623888136,6.3423,161.95,161.88,26.73832904]
[1724623888338,6.3423,161.95,161.89,51.73832904]
[1724623888559,6.3423,161.95,161.9,22.93517356]
[1724623888852,6.3423,161.95,161.9,52.23085939]
[1724623889161,15.2388,161.96,161.91,2.93121086]
[1724623889351,15.2388,161.96,161.9,49.29568583]
[1724623889670,15.2388,161.96,161.91,2.93003517]
[1724623890174,15.2388,161.96,161.9,49.29568583]
[1724623890457,15.2388,161.96,161.91,2.930609]
[1724623891067,15.2388,161.96,161.91,51.72875623]
[1724623891367,15.2388,161.96,161.92,24.47590583]
[1724623891547,15.2388,161.96,161.93,1.54529683]
[1724623892784,6.576,161.99,161.93,1.54529683]
[1724623893544,6.576,161.99,161.91,2.93192105]
[1724623893760,6.576,161.99,161.92,1.54543993]
[1724623893957,6.576,161.99,161.93,1.54543993]
[1724623894160,6.576,161.99,161.94,1.54543993]
[1724623894467,6.576,161.99,161.91,5.34481839]
[1724623894668,6.576,161.99,161.92,21.54543993]
[1724623894873,6.576,161.99,161.93,1.54543993]
[1724623895068,6.576,161.99,161.94,1.54543993]
[1724623895272,6.576,161.99,161.95,1.54543993]
[1724623895451,6.576,161.99,161.96,1.54543993]
[1724623895649,6.576,161.99,161.94,1.54543993]
[1724623895849,6.576,161.99,161.95,1.54543993]
[1724623896049,6.576,161.99,161.94,1.54543993]
[1724623896252,6.576,161.99,161.95,1.54543993]
[1724623896451,6.576,161.99,161.94,1.54543993]
[1724623896652,6.576,161.99,161.95,1.54543993]
[1724623896956,6.576,161.99,161.94,1.54543993]
[1724623897158,6.576,161.99,161.95,1.54543993]
[1724623897373,6.576,161.99,161.9,22.93260452]
[1724623897374,6.576,161.99,161.91,3.8011001]
[1724623897573,6.576,161.99,161.92,1.54545816]
[1724623897874,6.576,161.99,161.93,1.54545816]
[1724623898056,6.576,161.99,161.9,6.73494492]
[1724623898254,6.576,161.99,161.91,1.54559622]
[1724623898473,6.576,161.99,161.92,1.54559622]
[1724623898665,6.576,161.99,161.93,1.54559622]
[1724623898871,6.576,161.99,161.94,1.54559622]
[1724623899053,6.576,161.99,161.91,21.54559622]
[1724623899258,6.576,161.99,161.92,1.54558197]
[1724623899455,6.576,161.99,161.93,1.54558197]
[1724623899659,6.576,161.99,161.9,20.0]
[1724623899660,6.576,161.99,161.94,1.54558197]
[1724623899854,6.576,161.99,161.9,22.93387614]
[1724623900053,6.576,161.99,161.91,1.54561975]
[1724623900362,6.576,161.99,161.9,20.0]
[1724623900549,6.576,161.99,161.92,1.5456202]
[1724623900957,6.576,161.99,161.93,1.5456202]
[1724623901176,6.576,161.99,161.94,1.5456202]
[1724623901358,6.576,161.99,161.95,1.5456202]
[1724623901558,6.576,161.99,161.91,6.73641627]
[1724623901758,6.576,161.99,161.92,1.54556582]
[1724623901961,6.576,161.99,161.93,1.54556582]
[1724623902161,6.576,161.99,161.94,1.54556582]
[1724623902382,6.576,161.99,161.91,2.93418963]
[1724623902580,6.576,161.99,161.92,1.54562265]
[1724623902749,6.576,161.99,161.93,1.54562265]
[1724623903054,6.576,161.99,161.94,1.54562265]
[1724623903255,6.576,161.99,161.95,1.54562265]
[1724623903453,6.576,161.99,161.92,2.93418963]
[1724623903652,6.576,161.99,161.93,1.54552951]
[1724623903857,6.576,161.99,161.94,1.54552951]
[1724623904075,6.576,161.99,161.95,1.54552951]
[1724623904379,6.576,161.99,161.92,2.93346785]
[1724623904577,6.576,161.99,161.93,1.54553847]
[1724623904763,6.576,161.99,161.93,4.47900632]
[1724623904962,6.576,161.99,161.94,1.54553847]
[1724623905158,6.576,161.99,161.95,1.54553847]
[1724623905367,6.576,161.99,161.96,1.54553847]
[1724623905565,6.576,161.99,161.92,2.93346785]
[1724623905756,6.576,161.99,161.93,1.54553535]
[1724623905963,6.576,161.99,161.94,1.54553535]
[1724623906163,6.576,161.99,161.95,1.54553535]
[1724623906369,0.91503869,161.98,161.91,2.93346785]
[1724623906571,0.91503869,161.98,161.92,1.54563673]
[1724623906772,6.576,161.99,161.93,1.54563673]
[1724623906985,6.576,161.99,161.87,20.0]
[1724623906986,6.576,161.99,161.89,20.0]
[1724623907163,6.576,161.99,161.94,1.54566639]
[1724623907377,6.576,161.99,161.9,2.93452857]
[1724623907577,6.576,161.99,161.91,4.48020244]
[1724623907780,6.576,161.99,161.92,1.54567387]
[1724623907968,6.576,161.99,161.93,1.54567387]
[1724623908299,6.576,161.99,161.94,1.54567387]
[1724623908480,6.576,161.99,161.91,6.73737535]
[1724623908667,6.576,161.99,161.92,4.48019591]
[1724623908873,6.576,161.99,161.93,1.54566734]
[1724623909065,6.576,161.99,161.94,1.54566734]
[1724623909278,6.576,161.99,161.95,1.54566734]
[1724623909475,6.576,161.99,161.96,1.54566734]
[1724623909698,6.576,161.99,161.97,1.54566734]
[1724623909978,6.576,161.99,161.93,7.241236]
[1724623910182,6.576,161.99,161.93,0.50386065]
[1724623910395,6.576,161.99,161.94,2.93290924]
[1724623910599,6.576,161.99,161.94,1.54544985]
[1724623910896,16.404,162.0,161.95,23.9579781]
[1724623911101,6.1406,162.03,161.96,30.68481594]
[1724623911274,6.1406,162.03,161.97,5.34382661]
[1724623911475,6.1406,162.03,161.98,1.54544985]
[1724623911674,6.1406,162.03,161.99,1.54544985]
[1724623911875,6.1406,162.03,162.0,1.54544985]
[1724623912115,6.1406,162.03,162.01,1.54544985]
[1724623912303,6.1406,162.03,161.97,3.79837676]
[1724623912597,6.1406,162.03,161.98,1.54510858]
[1724623912905,6.1406,162.03,161.99,1.54510858]
[1724623913084,6.1406,162.03,162.0,1.54510858]
[1724623913415,6.1406,162.03,161.96,20.0]
[1724623913798,0.91503869,162.02,161.97,1.54513119]
[1724623914010,29.59477968,162.03,161.98,1.54513119]
[1724623914217,23.45417968,162.01,161.93,3.80024638]
[1724623914423,0.91503869,162.0,161.94,1.54542852]
[1724623914587,23.45417968,161.99,161.95,1.54542852]
[1724623914788,23.45417968,161.99,161.9,3.80024638]
[1724623915112,23.45417968,161.99,161.91,1.54555302]
[1724623915113,15.6264,161.98,161.91,1.54555302]
[1724623915306,15.6264,161.98,161.92,1.54555302]
[1724623915513,15.6264,161.98,161.89,3.80024638]
[1724623915514,15.6264,161.98,161.93,1.54555302]
[1724623915813,15.6264,161.98,161.94,1.54555302]
[1724623916018,15.6264,161.98,161.89,3.80024638]
[1724623916212,15.6264,161.98,161.9,1.54562582]
[1724623916523,15.6264,161.98,161.91,1.54562582]
[1724623916727,15.6264,161.98,161.87,29.32349632]
[1724623917011,15.6264,161.98,161.88,10.19171828]
[1724623917321,15.6264,161.98,161.92,1.54558213]
[1724623917528,15.6264,161.98,161.93,1.54569047]
[1724623917700,15.6264,161.98,161.94,1.54569047]
[1724623918030,15.6264,161.98,161.91,20.0]
[1724623918193,15.6264,161.98,161.92,1.54565875]
[1724623918393,15.6264,161.98,161.93,1.54565875]
[1724623918594,6.353,161.97,161.94,1.54565875]
[1724623918900,6.353,161.97,161.9,20.0]
[1724623919097,6.353,161.97,161.91,1.54567108]
[1724623919298,15.6264,161.98,161.92,1.54567108]
[1724623919621,15.6264,161.98,161.9,30.19332182]
[1724623919622,15.6264,161.98,161.93,1.54567108]
[1724623919819,6.353,162.01,161.94,1.54567108]
[1724623920024,6.353,162.01,161.92,53.12532557]
[1724623920025,6.353,162.01,161.95,1.54567108]
[1724623920227,6.353,162.01,161.96,1.54567108]
[1724623920530,7.26803869,162.01,161.97,1.54567108]
[1724623920821,7.26803869,162.01,161.98,1.54567108]
[1724623921030,6.353,162.01,161.99,1.54567108]
[1724623921234,6.353,162.01,161.96,20.0]
[1724623921418,6.353,162.01,161.97,1.54507665]
[1724623921620,6.353,162.01,161.98,1.54507665]
[1724623921801,6.353,162.01,161.99,1.54507665]
[1724623922007,6.353,162.01,162.0,1.54507665]
[1724623922605,6.353,162.01,161.97,1.54520826]